[Event "Late-Titled-Tuesday-Blitz-March-19-2024"]
[Site "Chess.com"]
[Date "2024.03.19"]
[Round "2"]
[White "ukchessbomber"]
[Black "jcibarra"]
[Result "1/2-1/2"]
[WhiteElo "2640"]
[BlackElo "2924"]
[TimeControl "180+1"]
[EndTime "14:18:50 PDT"]
[Termination "Game drawn - insufficient material"]

1. c4 {[%clk 0:03:00.9]} 1... e5 {[%clk 0:02:59.9]} 2. b3 {[%clk 0:03:00.8]}
2... Nf6 {[%clk 0:02:58]} 3. Bb2 {[%clk 0:03:01.5]} 3... Nc6 {[%clk 0:02:57.9]}
4. e3 {[%clk 0:02:59.6]} 4... g6 {[%clk 0:02:55.7]} 5. Nf3 {[%clk 0:02:57.4]}
5... d6 {[%clk 0:02:49.7]} 6. Be2 {[%clk 0:02:55.9]} 6... Bg7 {[%clk 0:02:48.7]}
7. O-O {[%clk 0:02:55.6]} 7... e4 {[%clk 0:02:43]} 8. Nd4 {[%clk 0:02:55.2]}
8... Ne5 {[%clk 0:02:36.8]} 9. f3 {[%clk 0:02:54.7]} 9... exf3 {[%clk
0:02:34.7]} 10. Nxf3 {[%clk 0:02:54.6]} 10... Qe7 {[%clk 0:02:32.3]} 11. Nc3
{[%clk 0:02:54.1]} 11... O-O {[%clk 0:02:32.2]} 12. Nxe5 {[%clk 0:02:45.6]}
12... dxe5 {[%clk 0:02:29.7]} 13. Nd5 {[%clk 0:02:41.2]} 13... Nxd5 {[%clk
0:02:28.6]} 14. cxd5 {[%clk 0:02:42.1]} 14... e4 {[%clk 0:02:13.4]} 15. Qc2
{[%clk 0:02:32.7]} 15... Bxb2 {[%clk 0:02:11.4]} 16. Qxb2 {[%clk 0:02:33]} 16...
Rd8 {[%clk 0:02:11]} 17. Bc4 {[%clk 0:02:17.7]} 17... Rd6 {[%clk 0:02:10.9]} 18.
Rac1 {[%clk 0:02:13.5]} 18... Bd7 {[%clk 0:02:08.8]} 19. b4 {[%clk 0:02:05.6]}
19... Rd8 {[%clk 0:02:04.5]} 20. Qd4 {[%clk 0:01:45.1]} 20... Bc6 {[%clk
0:01:55.2]} 21. Rxf7 {[%clk 0:01:29.8]} 21... Qxf7 {[%clk 0:01:42.1]} 22. dxc6
{[%clk 0:01:29.5]} 22... Rxd4 {[%clk 0:01:42]} 23. Bxf7+ {[%clk 0:01:24.3]}
23... Kxf7 {[%clk 0:01:42.9]} 24. exd4 {[%clk 0:01:24]} 24... b6 {[%clk
0:01:32.6]} 25. Rc4 {[%clk 0:01:16.8]} 25... b5 {[%clk 0:01:13.2]} 26. Rc5
{[%clk 0:01:16.8]} 26... a6 {[%clk 0:01:03.8]} 27. d5 {[%clk 0:00:37.6]} 27...
Kf6 {[%clk 0:01:04.4]} 28. Kf2 {[%clk 0:00:38.3]} 28... Ke5 {[%clk 0:01:04.8]}
29. d6+ {[%clk 0:00:38.9]} 29... Kxd6 {[%clk 0:01:04.6]} 30. Ke3 {[%clk
0:00:39.8]} 30... Ke6 {[%clk 0:00:59.2]} 31. Rc3 {[%clk 0:00:26.2]} 31... Ke5
{[%clk 0:00:57.5]} 32. g4 {[%clk 0:00:19.6]} 32... g5 {[%clk 0:00:54.2]} 33. h3
{[%clk 0:00:19.6]} 33... Rd4 {[%clk 0:00:51.7]} 34. Rc5+ {[%clk 0:00:17.7]}
34... Rd5 {[%clk 0:00:52.1]} 35. Rc3 {[%clk 0:00:15.3]} 35... Kd6 {[%clk
0:00:38.8]} 36. Kxe4 {[%clk 0:00:13]} 36... Rxd2 {[%clk 0:00:38.4]} 37. Kf5
{[%clk 0:00:07.7]} 37... Rxa2 {[%clk 0:00:29.2]} 38. Kxg5 {[%clk 0:00:07.8]}
38... a5 {[%clk 0:00:29.8]} 39. bxa5 {[%clk 0:00:06.8]} 39... Rxa5 {[%clk
0:00:28.7]} 40. Kh6 {[%clk 0:00:07.2]} 40... b4 {[%clk 0:00:29.3]} 41. Rb3
{[%clk 0:00:05.1]} 41... Kc5 {[%clk 0:00:26.1]} 42. h4 {[%clk 0:00:05]} 42...
Ra3 {[%clk 0:00:24.9]} 43. Rb1 {[%clk 0:00:05.6]} 43... b3 {[%clk 0:00:17.2]}
44. Kxh7 {[%clk 0:00:04.8]} 44... Ra4 {[%clk 0:00:17.8]} 45. Rxb3 {[%clk
0:00:04]} 45... Rxg4 {[%clk 0:00:17.6]} 46. h5 {[%clk 0:00:03.8]} 46... Kxc6
{[%clk 0:00:16.7]} 47. h6 {[%clk 0:00:04.5]} 47... Kd5 {[%clk 0:00:17.2]} 48.
Rb7 {[%clk 0:00:03.9]} 48... c5 {[%clk 0:00:17.2]} 49. Rg7 {[%clk 0:00:03.3]}
49... Rh4 {[%clk 0:00:17.8]} 50. Kg6 {[%clk 0:00:04]} 50... c4 {[%clk
0:00:17.4]} 51. Rc7 {[%clk 0:00:04.3]} 51... Kd4 {[%clk 0:00:15.8]} 52. h7
{[%clk 0:00:04]} 52... c3 {[%clk 0:00:16.5]} 53. Kg7 {[%clk 0:00:04.3]} 53...
Kd3 {[%clk 0:00:15.2]} 54. Rd7+ {[%clk 0:00:04.7]} 54... Ke2 {[%clk 0:00:15]}
55. Re7+ {[%clk 0:00:05.3]} 55... Kd2 {[%clk 0:00:15.2]} 56. Rd7+ {[%clk
0:00:05.9]} 56... Ke2 {[%clk 0:00:14.7]} 57. Rc7 {[%clk 0:00:05.8]} 57... Kd2
{[%clk 0:00:14.6]} 58. h8=Q {[%clk 0:00:06.2]} 58... Rxh8 {[%clk 0:00:13.4]} 59.
Kxh8 {[%clk 0:00:07.1]} 59... c2 {[%clk 0:00:13.9]} 60. Rd7+ {[%clk 0:00:07.9]}
60... Ke2 {[%clk 0:00:14.1]} 61. Rc7 {[%clk 0:00:08.8]} 61... Kd2 {[%clk
0:00:14.7]} 62. Rxc2+ {[%clk 0:00:09.1]} 62... Kxc2 {[%clk 0:00:15.1]} 1/2-1/2

[Event "Late-Titled-Tuesday-Blitz-March-19-2024"]
[Site "Chess.com"]
[Date "2024.03.19"]
[Round "2"]
[White "I-Mesquita"]
[Black "Kombinator01"]
[Result "1-0"]
[WhiteElo "2717"]
[BlackElo "2408"]
[TimeControl "180+1"]
[EndTime "14:18:50 PDT"]
[Termination "I-Mesquita won by checkmate"]

1. e4 {[%clk 0:02:59.2]} 1... e5 {[%clk 0:02:58.7]} 2. Nf3 {[%clk 0:02:59.3]}
2... Nf6 {[%clk 0:02:58.3]} 3. Nxe5 {[%clk 0:02:58.3]} 3... Nxe4 {[%clk
0:02:57.7]} 4. Nf3 {[%clk 0:02:59]} 4... d5 {[%clk 0:02:54.3]} 5. d3 {[%clk
0:02:51.2]} 5... Nf6 {[%clk 0:02:49.6]} 6. Be2 {[%clk 0:02:51]} 6... c5 {[%clk
0:02:46.7]} 7. O-O {[%clk 0:02:50.3]} 7... Nc6 {[%clk 0:02:46.6]} 8. d4 {[%clk
0:02:49.9]} 8... cxd4 {[%clk 0:02:35]} 9. Nxd4 {[%clk 0:02:49.5]} 9... Bd6
{[%clk 0:02:35.3]} 10. Bg5 {[%clk 0:02:42.4]} 10... h6 {[%clk 0:02:33.5]} 11.
Bh4 {[%clk 0:02:41.4]} 11... O-O {[%clk 0:02:26.5]} 12. Nc3 {[%clk 0:02:37.5]}
12... Be5 {[%clk 0:02:19]} 13. Nf3 {[%clk 0:02:30.1]} 13... Bxc3 {[%clk
0:02:08.9]} 14. bxc3 {[%clk 0:02:31]} 14... Be6 {[%clk 0:02:06.3]} 15. Rb1
{[%clk 0:02:29.5]} 15... b6 {[%clk 0:02:04.8]} 16. Bb5 {[%clk 0:02:21.9]} 16...
Rc8 {[%clk 0:02:03.8]} 17. Ba6 {[%clk 0:02:22.1]} 17... Rc7 {[%clk 0:02:02.1]}
18. Bg3 {[%clk 0:02:21.4]} 18... Re7 {[%clk 0:02:01.9]} 19. Bb5 {[%clk
0:02:20.6]} 19... Na5 {[%clk 0:01:58.6]} 20. Bh4 {[%clk 0:02:19.3]} 20... Rc7
{[%clk 0:01:56.9]} 21. Qd4 {[%clk 0:02:14.1]} 21... Bf5 {[%clk 0:01:43.6]} 22.
Rbc1 {[%clk 0:01:49.1]} 22... Be4 {[%clk 0:01:35]} 23. Ne5 {[%clk 0:01:43.3]}
23... Qd6 {[%clk 0:01:04.7]} 24. Rfe1 {[%clk 0:01:32.7]} 24... Qc5 {[%clk
0:01:02.3]} 25. Bxf6 {[%clk 0:01:09.5]} 25... Qxd4 {[%clk 0:00:59.4]} 26. cxd4
{[%clk 0:01:08.5]} 26... gxf6 {[%clk 0:01:00]} 27. Nd7 {[%clk 0:01:03.7]} 27...
a6 {[%clk 0:00:40.9]} 28. Nxf8 {[%clk 0:00:42.3]} 28... axb5 {[%clk 0:00:40.2]}
29. f3 {[%clk 0:00:43]} 29... Bf5 {[%clk 0:00:30.8]} 30. Re8 {[%clk 0:00:42.1]}
30... Kg7 {[%clk 0:00:30.9]} 31. g4 {[%clk 0:00:20.2]} 31... Bd3 {[%clk
0:00:28.2]} 32. Rd8 {[%clk 0:00:15.7]} 32... Bc4 {[%clk 0:00:25.8]} 33. Re1
{[%clk 0:00:10.4]} 33... Nc6 {[%clk 0:00:25.8]} 34. Ra8 {[%clk 0:00:10.6]} 34...
Nxd4 {[%clk 0:00:25.8]} 35. Kf2 {[%clk 0:00:10]} 35... Nxc2 {[%clk 0:00:15.8]}
36. Ree8 {[%clk 0:00:10.6]} 36... f5 {[%clk 0:00:16.2]} 37. h4 {[%clk
0:00:08.5]} 37... fxg4 {[%clk 0:00:16.1]} 38. fxg4 {[%clk 0:00:09.4]} 38... Nd4
{[%clk 0:00:15.5]} 39. g5 {[%clk 0:00:09.1]} 39... hxg5 {[%clk 0:00:16.4]} 40.
hxg5 {[%clk 0:00:09.4]} 40... Nc6 {[%clk 0:00:14.4]} 41. g6 {[%clk 0:00:08.7]}
41... fxg6 {[%clk 0:00:13.8]} 42. Ne6+ {[%clk 0:00:09]} 42... Kf6 {[%clk
0:00:14.2]} 43. Nxc7 {[%clk 0:00:09.9]} 43... Ne5 {[%clk 0:00:13.5]} 44. Re6+
{[%clk 0:00:10]} 44... Kf5 {[%clk 0:00:13.6]} 45. Rf8+ {[%clk 0:00:10.5]} 45...
Ke4 {[%clk 0:00:12.7]} 46. Rfe8 {[%clk 0:00:11.1]} 46... Kd3 {[%clk 0:00:12.9]}
47. Rxe5 {[%clk 0:00:11.8]} 47... d4 {[%clk 0:00:13.5]} 48. Rd8 {[%clk
0:00:12.3]} 48... Bxa2 {[%clk 0:00:13]} 49. Nxb5 {[%clk 0:00:12.7]} 49... Kc4
{[%clk 0:00:13.2]} 50. Rxd4+ {[%clk 0:00:13]} 50... Kb3 {[%clk 0:00:12.6]} 51.
Ree4 {[%clk 0:00:13.3]} 51... g5 {[%clk 0:00:13]} 52. Re3+ {[%clk 0:00:13.7]}
52... Kb2 {[%clk 0:00:12.9]} 53. Rd2+ {[%clk 0:00:13.7]} 53... Ka1 {[%clk
0:00:13.5]} 54. Re1+ {[%clk 0:00:12.6]} 54... Bb1 {[%clk 0:00:14.2]} 55. Na3
{[%clk 0:00:13.1]} 55... g4 {[%clk 0:00:15.1]} 56. Rxb1# {[%clk 0:00:13.3]} 1-0

[Event "Late-Titled-Tuesday-Blitz-March-19-2024"]
[Site "Chess.com"]
[Date "2024.03.19"]
[Round "2"]
[White "Sacbutt"]
[Black "GiorgianBarbosa"]
[Result "1/2-1/2"]
[WhiteElo "2316"]
[BlackElo "2529"]
[TimeControl "180+1"]
[EndTime "14:18:50 PDT"]
[Termination "Game drawn - insufficient material"]

1. d4 {[%clk 0:03:00.9]} 1... Nf6 {[%clk 0:02:58.3]} 2. c4 {[%clk 0:03:01]} 2...
g6 {[%clk 0:02:59.2]} 3. Nc3 {[%clk 0:03:00.7]} 3... Bg7 {[%clk 0:03:00.1]} 4.
Nf3 {[%clk 0:03:00.5]} 4... O-O {[%clk 0:03:01]} 5. g3 {[%clk 0:03:00.9]} 5...
d6 {[%clk 0:03:01.9]} 6. Bg2 {[%clk 0:03:01.5]} 6... c5 {[%clk 0:03:02.1]} 7.
O-O {[%clk 0:03:01.6]} 7... Nc6 {[%clk 0:03:01.8]} 8. e3 {[%clk 0:02:59.8]} 8...
Bd7 {[%clk 0:02:54.5]} 9. b3 {[%clk 0:02:56.3]} 9... a6 {[%clk 0:02:54.2]} 10.
Bb2 {[%clk 0:02:55.5]} 10... Rb8 {[%clk 0:02:54.6]} 11. d5 {[%clk 0:02:54]}
11... Na5 {[%clk 0:02:53.8]} 12. Rb1 {[%clk 0:02:48.5]} 12... b5 {[%clk
0:02:53.9]} 13. Qc2 {[%clk 0:02:46.7]} 13... bxc4 {[%clk 0:02:53]} 14. Ba1
{[%clk 0:02:36.1]} 14... cxb3 {[%clk 0:02:47.4]} 15. axb3 {[%clk 0:02:37]} 15...
c4 {[%clk 0:02:38.5]} 16. b4 {[%clk 0:02:32.8]} 16... Nb3 {[%clk 0:02:38.3]} 17.
Rxb3 {[%clk 0:02:28.4]} 17... cxb3 {[%clk 0:02:37.8]} 18. Qxb3 {[%clk 0:02:29]}
18... a5 {[%clk 0:02:36.6]} 19. b5 {[%clk 0:02:28]} 19... Qb6 {[%clk 0:02:33]}
20. Rb1 {[%clk 0:02:25.6]} 20... Rfc8 {[%clk 0:02:32.5]} 21. Nd4 {[%clk
0:02:24.3]} 21... Kf8 {[%clk 0:02:07]} 22. Na4 {[%clk 0:02:15.6]} 22... Qc7
{[%clk 0:01:57.6]} 23. Nc6 {[%clk 0:02:07.7]} 23... Bxc6 {[%clk 0:01:57]} 24.
dxc6 {[%clk 0:02:07.2]} 24... d5 {[%clk 0:01:49.8]} 25. Bxd5 {[%clk 0:01:54.6]}
25... Nxd5 {[%clk 0:01:48.9]} 26. Bxg7+ {[%clk 0:01:55.2]} 26... Kxg7 {[%clk
0:01:49.8]} 27. Qxd5 {[%clk 0:01:55.7]} 27... Qd6 {[%clk 0:01:40.2]} 28. Qxd6
{[%clk 0:01:33.1]} 28... exd6 {[%clk 0:01:41.1]} 29. Rb2 {[%clk 0:01:30.8]}
29... Kf6 {[%clk 0:01:39.3]} 30. Kf1 {[%clk 0:01:29.5]} 30... Ke6 {[%clk
0:01:39.4]} 31. Ke2 {[%clk 0:01:25.6]} 31... h5 {[%clk 0:01:36.8]} 32. h4 {[%clk
0:01:24.8]} 32... d5 {[%clk 0:01:33.2]} 33. Kd3 {[%clk 0:01:10.5]} 33... Kd6
{[%clk 0:01:32.6]} 34. Kd4 {[%clk 0:01:10.3]} 34... Re8 {[%clk 0:01:32.5]} 35.
f3 {[%clk 0:01:10.2]} 35... Rec8 {[%clk 0:01:23.7]} 36. e4 {[%clk 0:00:46.4]}
36... dxe4 {[%clk 0:01:24.6]} 37. fxe4 {[%clk 0:00:47.2]} 37... f6 {[%clk
0:01:20.7]} 38. Kc4 {[%clk 0:00:45.2]} 38... Re8 {[%clk 0:01:14.2]} 39. Rd2+
{[%clk 0:00:42.5]} 39... Ke5 {[%clk 0:01:02]} 40. c7 {[%clk 0:00:36.3]} 40...
Rec8 {[%clk 0:00:39.5]} 41. Rd5+ {[%clk 0:00:28.6]} 41... Kxe4 {[%clk
0:00:31.3]} 42. Nc5+ {[%clk 0:00:19.3]} 42... Kf3 {[%clk 0:00:32.2]} 43. cxb8=Q
{[%clk 0:00:19.2]} 43... Rxb8 {[%clk 0:00:33.1]} 44. Rd6 {[%clk 0:00:16.3]}
44... Rf8 {[%clk 0:00:27.9]} 45. b6 {[%clk 0:00:16.5]} 45... Kxg3 {[%clk
0:00:27.7]} 46. b7 {[%clk 0:00:17]} 46... Kxh4 {[%clk 0:00:19.9]} 47. Rxf6
{[%clk 0:00:17]} 47... Rb8 {[%clk 0:00:17.7]} 48. Rxg6 {[%clk 0:00:17.2]} 48...
a4 {[%clk 0:00:18]} 49. Ra6 {[%clk 0:00:16.4]} 49... Kg3 {[%clk 0:00:14.6]} 50.
Ra8 {[%clk 0:00:16.3]} 50... Rxb7 {[%clk 0:00:14.7]} 51. Nxb7 {[%clk 0:00:16.9]}
51... h4 {[%clk 0:00:15.6]} 52. Rxa4 {[%clk 0:00:16.9]} 52... h3 {[%clk
0:00:16.1]} 53. Nc5 {[%clk 0:00:16]} 53... h2 {[%clk 0:00:15.8]} 54. Ne4+ {[%clk
0:00:15.9]} 54... Kf3 {[%clk 0:00:14.6]} 55. Ra1 {[%clk 0:00:13.9]} 55... Kg2
{[%clk 0:00:15]} 56. Nf2 {[%clk 0:00:13.6]} 56... Kxf2 {[%clk 0:00:14.6]} 57.
Kd3 {[%clk 0:00:14.2]} 57... Kg2 {[%clk 0:00:14.6]} 58. Ke2 {[%clk 0:00:14.5]}
58... h1=Q {[%clk 0:00:13.4]} 59. Rxh1 {[%clk 0:00:14.2]} 59... Kxh1 {[%clk
0:00:14.3]} 1/2-1/2

[Event "Late-Titled-Tuesday-Blitz-March-19-2024"]
[Site "Chess.com"]
[Date "2024.03.19"]
[Round "2"]
[White "Cambek64"]
[Black "carloseduar100"]
[Result "1/2-1/2"]
[WhiteElo "2498"]
[BlackElo "2258"]
[TimeControl "180+1"]
[EndTime "14:18:50 PDT"]
[Termination "Game drawn - insufficient material"]

1. e4 {[%clk 0:03:00.9]} 1... e6 {[%clk 0:02:57.7]} 2. d4 {[%clk 0:03:00.1]}
2... d5 {[%clk 0:02:58.6]} 3. Nd2 {[%clk 0:02:59.2]} 3... c5 {[%clk 0:02:58.1]}
4. exd5 {[%clk 0:02:56.2]} 4... Qxd5 {[%clk 0:02:43.7]} 5. Ngf3 {[%clk
0:02:55.2]} 5... cxd4 {[%clk 0:02:39.2]} 6. Bc4 {[%clk 0:02:55.7]} 6... Qd7
{[%clk 0:02:39.8]} 7. O-O {[%clk 0:02:55.8]} 7... Nc6 {[%clk 0:02:40.4]} 8. Nb3
{[%clk 0:02:56]} 8... Nf6 {[%clk 0:02:40.7]} 9. Nbxd4 {[%clk 0:02:56.1]} 9...
Nxd4 {[%clk 0:02:41.6]} 10. Nxd4 {[%clk 0:02:55]} 10... a6 {[%clk 0:02:41.3]}
11. c3 {[%clk 0:02:55]} 11... Bd6 {[%clk 0:02:40.9]} 12. Qe2 {[%clk 0:02:53.1]}
12... b5 {[%clk 0:02:36.7]} 13. Bb3 {[%clk 0:02:51.1]} 13... Qc7 {[%clk
0:02:36.2]} 14. h3 {[%clk 0:02:46.9]} 14... O-O {[%clk 0:02:34.4]} 15. Bg5
{[%clk 0:02:45]} 15... h6 {[%clk 0:02:34.2]} 16. Be3 {[%clk 0:02:39.8]} 16...
Bb7 {[%clk 0:02:27]} 17. Rad1 {[%clk 0:02:40.3]} 17... Rfd8 {[%clk 0:02:26.1]}
18. a3 {[%clk 0:02:39.1]} 18... Bf8 {[%clk 0:02:19.1]} 19. Rfe1 {[%clk
0:02:36.8]} 19... Nd5 {[%clk 0:02:19.3]} 20. Bc1 {[%clk 0:02:36.4]} 20... Rac8
{[%clk 0:02:16.8]} 21. Qg4 {[%clk 0:02:27.9]} 21... Nf6 {[%clk 0:02:04.7]} 22.
Qh4 {[%clk 0:02:27.4]} 22... Bd5 {[%clk 0:02:02.6]} 23. Bxh6 {[%clk 0:02:20.9]}
23... Bxb3 {[%clk 0:01:48.7]} 24. Nxb3 {[%clk 0:02:19.5]} 24... Rxd1 {[%clk
0:01:48.5]} 25. Rxd1 {[%clk 0:02:17.5]} 25... Qc4 {[%clk 0:01:49]} 26. Nd4
{[%clk 0:02:08.4]} 26... Rc5 {[%clk 0:01:39.9]} 27. Bg5 {[%clk 0:02:06.4]} 27...
Be7 {[%clk 0:01:37.6]} 28. Nf3 {[%clk 0:01:26.8]} 28... Qxh4 {[%clk 0:01:24.4]}
29. Bxh4 {[%clk 0:01:26]} 29... a5 {[%clk 0:01:14.5]} 30. Bg3 {[%clk 0:01:17]}
30... b4 {[%clk 0:01:07.7]} 31. cxb4 {[%clk 0:01:16.9]} 31... axb4 {[%clk
0:01:08.6]} 32. a4 {[%clk 0:01:15]} 32... Rc2 {[%clk 0:01:00.8]} 33. Be5 {[%clk
0:01:13.4]} 33... Nd5 {[%clk 0:00:57.8]} 34. a5 {[%clk 0:01:12.2]} 34... Bc5
{[%clk 0:00:57.6]} 35. Bd4 {[%clk 0:00:59.5]} 35... Bxd4 {[%clk 0:00:54.1]} 36.
Nxd4 {[%clk 0:01:00]} 36... Rxb2 {[%clk 0:00:54.6]} 37. Ra1 {[%clk 0:01:00.2]}
37... b3 {[%clk 0:00:47.6]} 38. a6 {[%clk 0:01:00.1]} 38... Ra2 {[%clk
0:00:47.8]} 39. Nxb3 {[%clk 0:00:59.1]} 39... Rxa1+ {[%clk 0:00:44.2]} 40. Nxa1
{[%clk 0:00:59.1]} 40... Kf8 {[%clk 0:00:44.3]} 41. a7 {[%clk 0:00:57.5]} 41...
Nc7 {[%clk 0:00:43.4]} 42. Nb3 {[%clk 0:00:56]} 42... Ke7 {[%clk 0:00:41.7]} 43.
Nc5 {[%clk 0:00:55.6]} 43... Kd6 {[%clk 0:00:38.3]} 44. Nb7+ {[%clk 0:00:56.1]}
44... Kd7 {[%clk 0:00:35.2]} 45. h4 {[%clk 0:00:54.6]} 45... Na8 {[%clk
0:00:35.2]} 46. g4 {[%clk 0:00:54.2]} 46... Kc7 {[%clk 0:00:35.5]} 47. Nc5
{[%clk 0:00:51.6]} 47... Kb6 {[%clk 0:00:33.4]} 48. Ne4 {[%clk 0:00:51.9]} 48...
f5 {[%clk 0:00:28.9]} 49. gxf5 {[%clk 0:00:50.7]} 49... exf5 {[%clk 0:00:29.8]}
50. Ng3 {[%clk 0:00:46.9]} 50... g6 {[%clk 0:00:28.1]} 51. f4 {[%clk 0:00:45.9]}
51... Kxa7 {[%clk 0:00:26.9]} 52. Kf2 {[%clk 0:00:43.5]} 52... Kb6 {[%clk
0:00:26.6]} 53. Ke3 {[%clk 0:00:44.1]} 53... Kc6 {[%clk 0:00:26.2]} 54. Kd4
{[%clk 0:00:43.1]} 54... Kd6 {[%clk 0:00:26.7]} 55. h5 {[%clk 0:00:35.8]} 55...
gxh5 {[%clk 0:00:22.6]} 56. Nxf5+ {[%clk 0:00:34.5]} 56... Ke6 {[%clk
0:00:20.1]} 57. Ng7+ {[%clk 0:00:34.3]} 57... Kf6 {[%clk 0:00:20.4]} 58. Nxh5+
{[%clk 0:00:35]} 58... Kf5 {[%clk 0:00:21.3]} 59. Ke3 {[%clk 0:00:34.5]} 59...
Nc7 {[%clk 0:00:20.4]} 60. Kf3 {[%clk 0:00:33.9]} 60... Ne6 {[%clk 0:00:17.7]}
61. Ng3+ {[%clk 0:00:33.6]} 61... Kf6 {[%clk 0:00:18]} 62. Ne4+ {[%clk
0:00:32.3]} 62... Kf5 {[%clk 0:00:17.8]} 63. Nd6+ {[%clk 0:00:33]} 63... Kf6
{[%clk 0:00:18.2]} 64. f5 {[%clk 0:00:32.6]} 64... Nd4+ {[%clk 0:00:18.1]} 65.
Ke4 {[%clk 0:00:31.7]} 65... Nxf5 {[%clk 0:00:19]} 1/2-1/2

[Event "Late-Titled-Tuesday-Blitz-March-19-2024"]
[Site "Chess.com"]
[Date "2024.03.19"]
[Round "2"]
[White "MetiForce"]
[Black "chess94cu"]
[Result "0-1"]
[WhiteElo "2907"]
[BlackElo "2646"]
[TimeControl "180+1"]
[EndTime "14:18:52 PDT"]
[Termination "chess94cu won on time"]

1. d4 {[%clk 0:02:56.9]} 1... Nf6 {[%clk 0:02:59.5]} 2. c4 {[%clk 0:02:57.2]}
2... d6 {[%clk 0:02:57.7]} 3. Nf3 {[%clk 0:02:57.3]} 3... Nbd7 {[%clk
0:02:57.6]} 4. Nc3 {[%clk 0:02:55.6]} 4... c6 {[%clk 0:02:54.5]} 5. g3 {[%clk
0:02:54.5]} 5... e5 {[%clk 0:02:51.5]} 6. Bg2 {[%clk 0:02:54.2]} 6... Be7 {[%clk
0:02:52.1]} 7. O-O {[%clk 0:02:54.2]} 7... O-O {[%clk 0:02:52.8]} 8. e4 {[%clk
0:02:54.1]} 8... Re8 {[%clk 0:02:49.7]} 9. h3 {[%clk 0:02:53.5]} 9... exd4
{[%clk 0:02:45.5]} 10. Nxd4 {[%clk 0:02:54.4]} 10... Bf8 {[%clk 0:02:46]} 11.
Re1 {[%clk 0:02:54.2]} 11... a5 {[%clk 0:02:44.4]} 12. b3 {[%clk 0:02:50.8]}
12... Nc5 {[%clk 0:02:44.4]} 13. Qc2 {[%clk 0:02:47]} 13... h6 {[%clk
0:02:43.6]} 14. Be3 {[%clk 0:02:45.7]} 14... Qc7 {[%clk 0:02:42.4]} 15. Rad1
{[%clk 0:02:45.5]} 15... Be6 {[%clk 0:02:38.2]} 16. f4 {[%clk 0:02:45.2]} 16...
Rad8 {[%clk 0:02:36.4]} 17. Bf2 {[%clk 0:02:45.5]} 17... Bc8 {[%clk 0:02:36.2]}
18. g4 {[%clk 0:02:44.9]} 18... g6 {[%clk 0:02:03.1]} 19. Kh1 {[%clk 0:02:30.7]}
19... Bg7 {[%clk 0:02:03.4]} 20. Bg3 {[%clk 0:02:31.1]} 20... Qb6 {[%clk
0:02:02.5]} 21. Bf2 {[%clk 0:02:21.4]} 21... Qc7 {[%clk 0:02:01.6]} 22. Nde2
{[%clk 0:01:56]} 22... Bxg4 {[%clk 0:01:47.6]} 23. hxg4 {[%clk 0:01:50.6]} 23...
Nxg4 {[%clk 0:01:48.5]} 24. Bd4 {[%clk 0:01:17.1]} 24... Bxd4 {[%clk 0:01:40.7]}
25. Nxd4 {[%clk 0:01:15.2]} 25... d5 {[%clk 0:01:41.1]} 26. e5 {[%clk
0:01:13.3]} 26... dxc4 {[%clk 0:01:40.5]} 27. bxc4 {[%clk 0:01:11.3]} 27... Qe7
{[%clk 0:01:40.4]} 28. Nf3 {[%clk 0:01:07.7]} 28... Rxd1 {[%clk 0:01:37.1]} 29.
Nxd1 {[%clk 0:01:05.2]} 29... Rd8 {[%clk 0:01:27.2]} 30. Bh3 {[%clk 0:00:25.6]}
30... h5 {[%clk 0:01:26.1]} 31. Bxg4 {[%clk 0:00:20.9]} 31... hxg4 {[%clk
0:01:27]} 32. Ng5 {[%clk 0:00:18.7]} 32... Ne6 {[%clk 0:01:27.5]} 33. Nf2 {[%clk
0:00:13.1]} 33... Nxg5 {[%clk 0:01:25.3]} 34. fxg5 {[%clk 0:00:14]} 34... Qxg5
{[%clk 0:01:25.7]} 35. Rd1 {[%clk 0:00:10.7]} 35... Rxd1+ {[%clk 0:01:13.6]} 36.
Qxd1 {[%clk 0:00:11.6]} 36... g3 {[%clk 0:01:14.2]} 37. Ng4 {[%clk 0:00:11.4]}
37... Kg7 {[%clk 0:00:57.1]} 38. Kg2 {[%clk 0:00:09.8]} 38... Qf4 {[%clk
0:00:56.5]} 39. Qf3 {[%clk 0:00:10]} 39... Qxc4 {[%clk 0:00:50.1]} 40. a3 {[%clk
0:00:05.9]} 40... Qd5 {[%clk 0:00:38.5]} 41. Qxd5 {[%clk 0:00:03.4]} 41... cxd5
{[%clk 0:00:39.4]} 42. Kxg3 {[%clk 0:00:04.3]} 42... b5 {[%clk 0:00:39.9]} 43.
Ne3 {[%clk 0:00:04.6]} 43... d4 {[%clk 0:00:39.6]} 44. Nd5 {[%clk 0:00:04.8]}
44... g5 {[%clk 0:00:23.9]} 45. Kf3 {[%clk 0:00:04.4]} 45... Kg6 {[%clk
0:00:23.3]} 46. Ke4 {[%clk 0:00:04.6]} 46... g4 {[%clk 0:00:23.9]} 47. Kxd4
{[%clk 0:00:02.6]} 47... Kf5 {[%clk 0:00:24.6]} 48. Ne7+ {[%clk 0:00:02.4]}
48... Kf4 {[%clk 0:00:22.2]} 49. Nd5+ {[%clk 0:00:01.8]} 49... Kf3 {[%clk
0:00:22.4]} 50. Ne3 {[%clk 0:00:02.2]} 50... b4 {[%clk 0:00:19.3]} 51. axb4
{[%clk 0:00:01.9]} 51... axb4 {[%clk 0:00:20.2]} 0-1